[Event "Seniors-LEM-65 Sachsen-Anhalt 2024"]
[Site "Magdeburg"]
[Date "2024.07.01"]
[Round "1.8"]
[White "Dehning-Busse, Karsten"]
[Black "Schmidt, Gerhard"]
[Result "0-1"]
[ECO "A07"]
[WhiteElo "1867"]
[BlackElo "2112"]
[Annotator "TA"]
[PlyCount "69"]
[EventDate "2024.06.25"]
[EventType "swiss"]
[EventCountry "GER"]
[SourceTitle "playchess.com"]
[Source "ChessBase"]
[SourceQuality "1"]
[TimeControl "40/5400+30:1800+30"]

{[%evp 15,69,0,0,-19,18,18,41,31,45,33,31,31,20,26,108,32,22,37,33,18,26,16,24,12,41,21,26,14,37,39,145,127,173,179,213,214,320,321,463,406,415,427,419,419,380,373,474,478,686,465,854,842,824,810,737,587]} 1. Nf3 {[%emt 0:00:08]} Nf6 {[%emt 0:00:45]} 2. g3 {[%emt 0:00:13]} d5 {[%emt 0:00:53]} 3. Bg2 {[%emt 0:00:10]} g6 {[%emt 0:01:07]} 4. O-O {[%emt 0:00:18]} Bg7 {[%emt 0:00:08]} 5. d3 {[%emt 0:00:12]} O-O {[%emt 0:01:56]} 6. Nbd2 {[%emt 0:00:22]} Re8 {[%emt 0:02:12]} 7. e4 {[%emt 0:00:28]} dxe4 {[%emt 0:02:41]} 8. dxe4 {[%emt 0:00:11]} e5 {[%emt 0:00:50]} 9. c3 {[%emt 0:01:14]} Nc6 {[%emt 0:05:54]} 10. Qc2 {[%emt 0:01:17]} Qe7 {[%emt 0:04:16]} 11. b4 {[%emt 0:07:04] White is slightly better.} a6 {[%emt 0:01:21]} 12. a4 {[%emt 0:00:55]} Be6 {[%emt 0:01:47]} 13. Ng5 {[%emt 0:01:20]} Bd7 {[%emt 0:03:46]} 14. Ba3 {[%emt 0:06:03] [#] Black must now prevent b5.} Qd8 {[%emt 0:04:27]} (14... b5 $11) 15. Rfd1 {[%emt 0:02:14]} (15. b5 $16 Na5 16. Qa2) 15... h6 {[%emt 0:02:56]} 16. Ngf3 {[%emt 0:00:54][%cal Bg5f3,Bf3e1,Be1d3,Bd3c5][%mdl 32]} Qc8 {[%emt 0:00:59]} 17. Nc4 {[%emt 0:06:03]} b5 {[%emt 0:05:32]} 18. axb5 {[%emt 0:03:18]} axb5 {[%emt 0:00:17]} 19. Ne3 {[%emt 0:00:30]} Qb7 {[%emt 0:19:49]} 20. Ne1 {[%emt 0:13:09]} Be6 {[%emt 0:06:28]} 21. Nd3 {[%emt 0:02:10]} Bf8 {[%emt 0:03:58]} 22. Nd5 {[%emt 0:00:26]} Bxd5 {[%emt 0:02:53]} (22... Nd7 $1 $14) 23. exd5 $16 {[%emt 0:00:16][%cal Be4d5,Bd5d6][%mdl 32]} Nd8 {[%emt 0:05:50] [#]} (23... Nb8 $16) 24. d6 $1 $36 {[%emt 0:06:24][%mdl 2560] White is really pushing.} c6 {[%emt 0:01:56]} (24... Nc6 25. Nc5) 25. Nc5 {[%emt 0:04:31]} Qb6 {[%emt 0:00:57]} (25... Qb8 {might work better.}) 26. c4 {[%emt 0:10:44][%cal Bc3c4,Bc4c5][%mdl 32]} Ne6 {[%emt 0:09:01]} (26... Bg7 $142 27. Bb2 Rxa1) 27. Nxe6 {[%emt 0:02:33]} Rxe6 {[%emt 0:01:38]} 28. c5 {[%emt 0:02:50]} Qb7 {[%emt 0:00:20]} 29. Bb2 {[%emt 0:00:18][%cal Ba3b2,Bb2c3,Bc3g7][%mdl 32]} Rxa1 {[%emt 0:00:49]} 30. Rxa1 {[%emt 0:02:40]} Nd7 {[%emt 0:01:26]} 31. Ra5 {[%emt 0:02:06] White is clearly winning.} Bg7 {[%emt 0:00:44]} (31... Bxd6 $142 32. cxd6 Rxd6) 32. Qe2 {[%emt 0:02:15] And now Bc1 would win.} f5 {[%emt 0:01:49]} (32... Re8 $142 33. Qd1 Nf6) 33. Bc3 {[%emt 0:02:21] Hoping for Qa2. This pair of bishops is nice.} e4 {[%emt 0:01:08]} 34. Qa2 {[%emt 0:00:17]} Nf8 {[%emt 0:02:45]} 35. Bxg7 {[%emt 0:00:17][%mdl 32768] Weighted Error Value: White=0.25 (precise) /Black=0.51.  Mistake:       	White=1     	Black=7      Inaccurate:     	White=1     	Black=2      OK:         	White=11    	Black=5      Best:        	White=1     	---       . Loss on time!?} 0-1

[Event "Seniors-LEM-65 Sachsen-Anhalt 2024"]
[Site "Magdeburg"]
[Date "2024.07.01"]
[Round "1.9"]
[White "Leibovitch, Iziaslav"]
[Black "Boldt, Heinrich"]
[Result "1-0"]
[ECO "A47"]
[WhiteElo "2105"]
[BlackElo "1866"]
[Annotator "RC"]
[PlyCount "41"]
[EventDate "2024.06.25"]
[EventType "swiss"]
[EventCountry "GER"]
[SourceTitle "playchess.com"]
[Source "ChessBase"]
[SourceQuality "1"]
[TimeControl "40/5400+30:1800+30"]

1. d4 {[%emt 0:00:07]} Nf6 {[%emt 0:00:09]} 2. Nf3 {[%emt 0:00:15]} c5 {[%emt 0:00:26]} 3. c3 {[%emt 0:00:50]} b6 {[%emt 0:01:21]} 4. Bf4 {[%emt 0:00:22]} Bb7 {[%emt 0:03:13]} 5. e3 {[%emt 0:01:13]} e6 {[%emt 0:03:22]} 6. Bd3 {[%emt 0:14:42]} d5 {[%emt 0:02:43]} 7. Nbd2 {[%emt 0:00:48]} Nc6 {[%emt 0:10:39]} 8. Ne5 {[%emt 0:05:01]} Nd7 {[%emt 0:13:01]} 9. Ndf3 {[%emt 0:00:36]} f6 {[%emt 0:01:06]} 10. Nxc6 {[%emt 0:07:28]} Bxc6 {[%emt 0:00:06]} 11. O-O {[%emt 0:00:19]} Be7 {[%emt 0:05:42]} 12. Re1 {[%emt 0:04:21]} f5 {[%emt 0:05:13]} 13. Ne5 {[%emt 0:04:36]} Nxe5 {[%emt 0:00:19]} 14. Bxe5 {[%emt 0:00:05]} O-O {[%emt 0:00:23]} 15. f3 {[%emt 0:07:12]} c4 {[%emt 0:11:33]} 16. Bc2 {[%emt 0:01:26]} b5 {[%emt 0:02:56]} 17. e4 {[%emt 0:07:19]} dxe4 {[%emt 0:01:10]} 18. fxe4 {[%emt 0:00:20]} Bd6 {[%emt 0:00:30]} 19. exf5 {[%emt 0:26:47]} exf5 {[%emt 0:05:34]} 20. Bxd6 {[%emt 0:02:59]} Qxd6 {[%emt 0:00:09]} 21. Re5 {[%emt 0:00:32]} 1-0

[Event "Seniors-LEM-65 Sachsen-Anhalt 2024"]
[Site "Magdeburg"]
[Date "2024.07.01"]
[Round "1.10"]
[White "Juergens, Peter"]
[Black "Andersen, Knut"]
[Result "1/2-1/2"]
[ECO "A47"]
[WhiteElo "2194"]
[BlackElo "2104"]
[Annotator "TA"]
[PlyCount "41"]
[EventDate "2024.06.25"]
[EventType "swiss"]
[EventCountry "GER"]
[SourceTitle "playchess.com"]
[Source "ChessBase"]
[SourceQuality "1"]
[TimeControl "40/5400+30:1800+30"]

{[%evp 10,41,11,6,19,15,17,6,22,10,59,95,49,58,52,38,63,13,17,16,25,0,10,4,38,33,39,37,35,55,21,0,9,0]} 1. d4 {[%emt 0:00:07]} Nf6 {[%emt 0:00:09]} 2. Nf3 {[%emt 0:00:15]} c5 {[%emt 0:00:26]} 3. c3 {[%emt 0:00:50]} b6 {[%emt 0:01:21]} 4. Bf4 {[%emt 0:00:22]} Bb7 {[%emt 0:03:13]} 5. e3 {[%emt 0:01:13]} e6 {[%emt 0:03:22]} 6. Bd3 {[%emt 0:14:42]} d5 {[%emt 0:02:43]} 7. Nbd2 {[%emt 0:00:48]} Nc6 {[%emt 0:10:39]} 8. Ne5 {[%emt 0:05:01]} Nd7 {[%emt 0:13:01]} 9. Ndf3 {[%emt 0:00:36][%cal Oe5f7] [#] Threatens to win with Nxf7!} f6 {[%emt 0:01:06]} (9... Ndxe5 $11 10. Nxe5 Bd6) 10. Nxc6 $14 {[%emt 0:07:28]} Bxc6 {[%emt 0:00:06]} 11. O-O {[%emt 0:00:19]} Be7 {[%emt 0:05:42]} 12. Re1 {[%emt 0:04:21]} f5 {[%emt 0:05:13]} 13. Ne5 {[%emt 0:04:36] White is much more active. The black rooks are passive.} (13. Ba6 $14) 13... Nxe5 $11 {[%emt 0:00:19]} 14. Bxe5 {[%emt 0:00:05]} O-O {[%emt 0:00:23]} 15. f3 {[%emt 0:07:12]} c4 {[%emt 0:11:33]} 16. Bc2 {[%emt 0:01:26]} b5 {[%emt 0:02:56]} 17. e4 {[%emt 0:07:19]} dxe4 {[%emt 0:01:10]} 18. fxe4 {[%emt 0:00:20]} Bd6 {[%emt 0:00:30]} 19. exf5 {[%emt 0:26:47]} exf5 {[%emt 0:05:34][%cal Od8g5]} 20. Bxd6 {[%emt 0:02:59]} Qxd6 {[%emt 0:00:09]} 21. Re5 {[%emt 0:00:32] Weighted Error Value: White=0.10 (very precise) /Black=0.14 (very precise) .  Mistake:       	White=1     	Black=1      Inaccurate:     	---       	Black=1      OK:         	White=4     	Black=3      Best:        	White=1     	Black=1} 1/2-1/2

[Event "Seniors-LEM-65 Sachsen-Anhalt 2024"]
[Site "Magdeburg"]
[Date "2024.07.01"]
[Round "1.11"]
[White "Krueger, Erich"]
[Black "Cordes, Lothar"]
[Result "1-0"]
[ECO "C42"]
[WhiteElo "2095"]
[BlackElo "1858"]
[Annotator "TA"]
[PlyCount "40"]
[EventDate "2024.06.25"]
[EventType "swiss"]
[EventCountry "GER"]
[SourceTitle "playchess.com"]
[Source "ChessBase"]
[SourceQuality "1"]
[TimeControl "40/5400+30:1800+30"]

{[%evp 9,40,-9,0,-27,-19,-46,0,-14,0,0,4,-29,-22,-52,-56,-54,-47,-69,-60,-82,-68,-83,-70,-97,-83,-150,-99,-113,-93,-133,-68,-133,-137]} 1. e4 {[%emt 0:00:12]} e5 {[%emt 0:00:09]} 2. Nf3 {[%emt 0:00:07]} Nf6 {[%emt 0:00:12]} 3. Nc3 {[%emt 0:00:42]} d6 {[%emt 0:00:27]} 4. d3 {[%emt 0:00:32]} Be7 {[%emt 0:00:19]} 5. h3 {[%emt 0:00:35]} O-O {[%emt 0:01:15]} 6. Bg5 {[%emt 0:00:45]} c6 {[%emt 0:01:23]} 7. a4 {[%emt 0:07:07]} Qc7 {[%emt 0:00:39]} (7... d5 $15 {was preferrable.}) 8. Be2 {[%emt 0:00:49] The position is equal.} Nbd7 {[%emt 0:00:57]} 9. O-O {[%emt 0:08:51]} Re8 {[%emt 0:00:54]} 10. Nh2 {[%emt 0:02:01]} Nf8 {[%emt 0:02:14]} 11. Bxf6 {[%emt 0:01:30]} Bxf6 {[%emt 0:00:50]} 12. Bg4 {[%emt 0:00:26]} Ne6 {[%emt 0:05:05]} 13. Ne2 {[%emt 0:05:48]} d5 {[%emt 0:05:01]} 14. exd5 {[%emt 0:01:26]} cxd5 {[%emt 0:00:34]} 15. c3 {[%emt 0:00:35]} g6 {[%emt 0:02:26]} 16. Qc2 {[%emt 0:04:02]} h5 {[%emt 0:04:49]} 17. Bf3 {[%emt 0:06:03]} (17. Bxe6 $142 Bxe6 (17... Rxe6 18. f4 $17) 18. Qd2) 17... Qd6 {[%emt 0:02:15]} (17... e4 $142 18. dxe4 Be5) 18. Rfd1 $17 {[%emt 0:00:37]} Bd7 {[%emt 0:05:33]} 19. b4 {[%emt 0:03:11]} a6 {[%emt 0:01:47]} ({Black should play} 19... Ng5 $17 20. Qd2 a5) 20. Ng3 {[%emt 0:11:17]} ({Better is} 20. Rab1 $15) 20... Rac8 {[%emt 0:04:45][%mdl 32768] Weighted Error Value: White=0.27 (precise) /Black=0.18 (very precise) .  Mistake:       	White=2     	Black=3      Inaccurate:     	White=5     	---        OK:         	White=3     	Black=2     . Loss on time!?} 1-0

[Event "Seniors-LEM-65 Sachsen-Anhalt 2024"]
[Site "Magdeburg"]
[Date "2024.07.01"]
[Round "1.12"]
[White "Fleischer, Martin"]
[Black "Schober, Ralf"]
[Result "0-1"]
[ECO "A52"]
[WhiteElo "1857"]
[BlackElo "2090"]
[Annotator "TA"]
[PlyCount "77"]
[EventDate "2024.06.25"]
[EventType "swiss"]
[EventCountry "GER"]
[SourceTitle "playchess.com"]
[Source "ChessBase"]
[SourceQuality "1"]
[TimeControl "40/5400+30:1800+30"]

{[%evp 17,77,58,101,22,46,0,44,12,15,-19,33,-19,-16,-54,110,-35,28,0,0,6,31,27,26,17,72,70,75,71,83,71,86,0,4,21,39,31,41,37,33,0,39,0,9,0,65,66,160,158,159,170,166,174,169,63,179,89,295,275,363,342,252,240]} 1. d4 {[%emt 0:00:04][%cal Bd2d4,Bd4e5][%mdl 32]} Nf6 {[%emt 0:00:09]} 2. c4 {[%emt 0:00:07]} e5 {[%emt 0:00:10]} 3. dxe5 {[%emt 0:00:16]} Ng4 {[%emt 0:00:06]} 4. Bf4 {[%emt 0:00:52]} g5 {[%emt 0:00:09]} 5. Bg3 {[%emt 0:00:19]} Bg7 {[%emt 0:00:24]} 6. Nf3 {[%emt 0:01:00]} Nc6 {[%emt 0:00:25]} 7. Nc3 {[%emt 0:03:29]} Ngxe5 {[%emt 0:00:51]} 8. Nxe5 {[%emt 0:03:03]} Nxe5 {[%emt 0:00:31]} 9. e3 {[%emt 0:02:01]} d6 {[%emt 0:01:03]} 10. Rc1 {[%emt 0:02:14]} (10. h4 $16) 10... Be6 {[%emt 0:02:12]} 11. b3 {[%emt 0:00:35]} (11. h4 $14 {is superior.}) 11... Qd7 {[%emt 0:02:02]} 12. Be2 {[%emt 0:02:44][%cal Oc4c5] White is slightly better.} O-O-O {[%emt 0:03:16]} 13. O-O {[%emt 0:02:43]} Kb8 {[%emt 0:01:15]} ({Black should play} 13... h5 $11) 14. Nb5 {[%emt 0:17:05] [#]} (14. f4 $14 Ng6 15. fxg5) 14... h5 $1 $11 {[%emt 0:02:29]} 15. h4 {[%emt 0:00:53]} (15. Bxh5 g4 16. f4 Nc6 $19) (15. Nd4 h4) 15... g4 $2 {[%emt 0:01:23]} (15... c6 $15 {stays ahead.} 16. Nd4 gxh4 17. Bxh4 Rdg8) 16. Nd4 {[%emt 0:03:55]} ({White must play} 16. c5 $1 $16) 16... Nc6 {[%emt 0:03:48]} (16... Qe7 $15) 17. Nxc6+ {[%emt 0:03:26]} Qxc6 {[%emt 0:00:40]} 18. Qc2 {[%emt 0:02:31]} Qc5 {[%emt 0:04:43]} 19. Rfd1 {[%emt 0:01:51]} Be5 {[%emt 0:01:22]} 20. Bxe5 {[%emt 0:02:15]} Qxe5 {[%emt 0:01:33]} (20... dxe5 $11 {keeps the balance.} 21. Qc3 Qa3) 21. g3 $16 {[%emt 0:00:46]} Rhe8 {[%emt 0:05:24]} 22. Rd4 {[%emt 0:03:42]} Bd7 {[%emt 0:12:45]} 23. Rd5 {[%emt 0:03:42]} (23. b4 {keeps more tension.} Bc6 24. b5 Be4 25. Bd3) 23... Qh8 {[%emt 0:06:43]} 24. Qc3 {[%emt 0:05:12]} (24. c5 $16) 24... Qxc3 $11 {[%emt 0:01:00]} 25. Rxc3 {[%emt 0:00:09]} Re5 {[%emt 0:00:23]} 26. Rcd3 {[%emt 0:11:43]} Bf5 {[%emt 0:01:22]} 27. Rd2 {[%emt 0:01:33] Hoping for Rxe5.} Rde8 {[%emt 0:00:41]} 28. Kf1 {[%emt 0:05:10]} a6 {[%emt 0:06:41]} 29. Ke1 {[%emt 0:00:23]} Ka7 {[%emt 0:00:54]} 30. R2d4 {[%emt 0:02:09]} Rxd5 {[%emt 0:02:57]} (30... f6 $11) 31. Rxd5 $14 {[%emt 0:00:40]} Re5 {[%emt 0:00:14]} (31... Bg6 $14) 32. Rxe5 {[%emt 0:00:46]} dxe5 $16 {[%emt 0:00:09][%mdl 4096] Endgame. [#] KB-KB} 33. f3 {[%emt 0:00:17]} gxf3 {[%emt 0:07:10]} 34. Bxf3 {[%emt 0:00:11]} Bg6 {[%emt 0:00:09]} 35. Kd2 {[%emt 0:00:48]} (35. g4 $18 hxg4 36. Bxg4) 35... f5 {[%emt 0:00:27] [#]} (35... e4 $1 $14 36. Bd1 Kb6) 36. Bd5 {[%emt 0:00:41]} (36. e4 $1 $18 {[%cal Re4f5] aiming for exf5.} fxe4 37. Be2) 36... b5 $2 {[%emt 0:00:47]} (36... Kb6 $16) 37. b4 $18 {[%emt 0:02:46]} bxc4 {[%emt 0:00:37]} 38. Kc3 {[%emt 0:00:40]} ({Less strong is} 38. Bxc4 Kb6 39. Kc3 c5 $16) 38... Kb6 {[%emt 0:00:33]} 39. Kxc4 {[%emt 0:00:46][%mdl 32768] Weighted Error Value: White=0.32/Black=0.44.  Loses game:     	---       	Black=1      Mistake:       	White=6     	Black=7      Inaccurate:     	White=5     	Black=3      OK:         	White=8     	Black=8      Best:        	White=3     	---       . Sensor Board Error (Ke4/e5)?} ({Stronger than} 39. Bxc4 a5 $11) 0-1

[Event "Seniors-LEM-65 Sachsen-Anhalt 2024"]
[Site "Magdeburg"]
[Date "2024.07.01"]
[Round "1.13"]
[White "Kolthoff, Siegmund"]
[Black "Schwarz, Hans"]
[Result "1-0"]
[ECO "A90"]
[WhiteElo "2090"]
[BlackElo "1856"]
[Annotator "TA"]
[PlyCount "125"]
[EventDate "2024.06.25"]
[EventType "swiss"]
[EventCountry "GER"]
[SourceTitle "playchess.com"]
[Source "ChessBase"]
[SourceQuality "1"]
[TimeControl "40/5400+30:1800+30"]

{[%evp 27,125,27,44,19,55,59,70,45,43,36,36,40,43,36,47,36,29,19,49,26,87,51,66,62,80,69,83,57,87,52,79,56,59,42,85,92,170,181,171,159,158,114,160,150,188,175,198,102,125,124,124,124,124,124,186,139,168,125,168,128,182,133,162,100,150,154,161,155,160,167,140,134,152,146,218,158,272,206,193,107,190,190,554,552,549,532,502,518,499,499,791,793,958,901,2133,1888,2236,1976,29968,1470]} 1. Nf3 {[%emt 0:00:08]} e6 {[%emt 0:00:05]} 2. g3 {[%emt 0:00:14]} f5 {[%emt 0:00:12]} 3. Bg2 {[%emt 0:01:30]} Nf6 {[%emt 0:00:07]} 4. O-O {[%emt 0:00:39]} d5 {[%emt 0:00:31]} 5. b3 {[%emt 0:03:58]} Bd6 {[%emt 0:00:59]} 6. d4 {[%emt 0:00:40]} O-O {[%emt 0:00:56]} 7. c4 {[%emt 0:00:05]} c6 {[%emt 0:01:29]} 8. Ba3 {[%emt 0:00:16]} b6 {[%emt 0:03:59]} 9. Qc1 {[%emt 0:06:21]} Bb7 {[%emt 0:02:37]} 10. Rd1 {[%emt 0:03:23]} Qe7 {[%emt 0:01:25]} 11. Bxd6 {[%emt 0:00:48]} Qxd6 {[%emt 0:00:13]} 12. Nbd2 {[%emt 0:07:09]} Nbd7 {[%emt 0:02:45]} 13. Qb2 {[%emt 0:02:26]} Ng4 {[%emt 0:11:35]} 14. e3 {[%emt 0:04:50]} Rac8 {[%emt 0:12:46]} 15. Rac1 {[%emt 0:05:08]} Rfe8 {[%emt 0:10:57]} 16. b4 {[%emt 0:08:21]} Rb8 {[%emt 0:10:24]} 17. Qc3 {[%emt 0:09:42]} Rbc8 {[%emt 0:06:17]} 18. h3 {[%emt 0:03:12]} Ngf6 {[%emt 0:00:29]} 19. Ne5 {[%emt 0:02:01]} Ne4 {[%emt 0:01:16]} 20. Qb2 {[%emt 0:01:27]} (20. Nxe4 {simplifies} fxe4 21. Nxd7 Qxd7 22. Qb2) 20... Nxe5 {[%emt 0:03:54]} 21. dxe5 {[%emt 0:02:05]} Qe7 {[%emt 0:00:58]} 22. Nf1 {[%emt 0:06:21]} Ng5 {[%emt 0:00:46]} 23. f4 {[%emt 0:03:16]} Nf7 {[%emt 0:00:19]} (23... Ne4 $11 {keeps the balance.}) 24. c5 {[%emt 0:01:14]} Ba6 {[%emt 0:04:59]} 25. Nd2 {[%emt 0:01:21]} Qb7 {[%emt 0:02:19]} 26. a3 {[%emt 0:01:32]} Rb8 {[%emt 0:03:34]} 27. Qd4 {[%emt 0:01:48]} Bb5 {[%emt 0:02:01]} 28. Bf3 {[%emt 0:04:16]} Qa6 {[%emt 0:01:52]} 29. Rc3 {[%emt 0:05:11]} Nd8 {[%emt 0:03:06]} 30. g4 {[%emt 0:01:54]} g6 {[%emt 0:00:09]} 31. Kf2 {[%emt 0:00:19]} Nb7 {[%emt 0:03:06] [#]} (31... bxc5 $16 32. Qxc5 fxg4) 32. gxf5 $1 $18 {[%emt 0:04:15]} exf5 {[%emt 0:02:26]} 33. cxb6 {[%emt 0:02:05]} Qxb6 {[%emt 0:02:11]} 34. Rdc1 {[%emt 0:00:51]} Nd8 {[%emt 0:00:42]} (34... Qxd4 $142 35. exd4 Nd8) 35. Nb3 $16 {[%emt 0:00:46]} Ne6 {[%emt 0:00:56]} 36. Qxb6 {[%emt 0:01:06]} axb6 {[%emt 0:00:30] [#]} 37. Be2 {[%emt 0:03:56]} (37. Rxc6 $1 $18 Bxc6 38. Rxc6) 37... Ba4 {[%emt 0:02:15]} 38. Nd4 {[%emt 0:00:26]} Nxd4 {[%emt 0:02:06]} 39. exd4 {[%emt 0:00:06]} Ra8 {[%emt 0:01:37]} 40. h4 {[%emt 0:00:20]} Re6 {[%emt 0:00:39]} (40... h5 $16 {might work better.} 41. Rb1 Kf7) 41. Ke3 {[%emt 0:35:02]} ({White should play} 41. Rg3 $18) 41... Kg7 {[%emt 0:01:04]} 42. Bd3 {[%emt 0:00:00]} Re7 {[%emt 0:01:51]} 43. Rg1 {[%emt 0:00:00]} Kf7 {[%emt 0:00:19]} (43... Bb5 $16 44. Bxb5 (44. Bxf5 Rea7 $16) 44... cxb5) 44. Kd2 {[%emt 0:00:00]} (44. h5 $18) 44... Rea7 {[%emt 0:02:03]} 45. Kc1 {[%emt 0:00:00]} (45. h5 $18) 45... Rb8 {[%emt 0:07:28]} ({Better is} 45... Rc8) 46. Kb2 $16 {[%emt 0:00:00]} Rc7 {[%emt 0:01:12]} 47. Rgc1 {[%emt 0:00:00]} Rbc8 {[%emt 0:03:14]} 48. Ba6 {[%emt 0:00:00]} Ra8 {[%emt 0:00:24]} 49. Be2 {[%emt 0:00:00]} Rac8 {[%emt 0:01:59]} 50. h5 {[%emt 0:00:00]} Kg7 {[%emt 0:02:55]} (50... Rg8 $16) 51. Bd3 {[%emt 0:00:00]} Kf7 {[%emt 0:00:57]} (51... Rh8 $16 52. Bb1 Rg8 53. hxg6 hxg6) 52. Rh1 {[%emt 0:00:00]} Rg8 {[%emt 0:02:11]} 53. Rcc1 {[%emt 0:00:00]} (53. hxg6+ $18 hxg6 54. Rh7+ Rg7 55. Rh2) 53... Ra7 {[%emt 0:02:54]} (53... gxh5 $16 54. Rxh5 (54. Bxf5 Rg2+ 55. Ka1 Rg3 $16) 54... Rg2+ 55. Ka1 (55. Kc3 Ke8 $14) 55... Kf8) 54. Rcg1 $18 {[%emt 0:00:00]} c5 $2 {[%emt 0:02:58]} (54... Kf8 {is a better chance.} 55. hxg6 hxg6) 55. hxg6+ $18 {[%emt 0:00:00]} (55. bxc5 bxc5 56. hxg6+ (56. dxc5 Ra5 $18) 56... hxg6 57. Rh7+ (57. dxc5 Rg7 $18) 57... Rg7 58. Rxg7+ Kxg7 59. Bxf5 (59. dxc5 Kh6 $18) 59... Kf8 $18) 55... hxg6 {[%emt 0:00:22]} 56. Rh7+ {[%emt 0:00:00]} (56. bxc5 bxc5 57. Rh7+ (57. dxc5 Rg7 $18) 57... Rg7 58. Rxg7+ Kxg7 59. Bxf5 (59. dxc5 Kh6 $16) 59... cxd4 60. Rxg6+ Kf8 $18) 56... Rg7 {[%emt 0:00:12]} 57. Rxg7+ {[%emt 0:00:00]} Kxg7 {[%emt 0:00:17]} 58. Bxf5 {[%emt 0:00:00]} (58. dxc5 bxc5 59. Bxf5 cxb4 60. axb4 (60. Bxg6 bxa3+ 61. Ka2 Kf8 $11) (60. Rxg6+ Kf8 $18) 60... Ra6) 58... Be8 {[%emt 0:00:39]} (58... Kf8 $142 59. Bxg6 (59. Rxg6 Rf7 $18) 59... cxd4) 59. Bxg6 $18 {[%emt 0:00:00]} Bxg6 {[%emt 0:03:01]} 60. f5 {[%emt 0:00:00]} (60. dxc5 Kf7 $14) 60... cxb4 {[%emt 0:00:57]} 61. Rxg6+ {[%emt 0:00:19]} ({Not} 61. fxg6 bxa3+ 62. Ka2 Ra8 $11) 61... Kf8 {[%emt 0:00:43]} 62. axb4 {[%emt 0:00:15]} Rb7 {[%emt 0:00:59]} 63. Rd6 {[%emt 0:00:16]} (63. f6 $142 Rh7 64. e6 Rh2+ 65. Ka3 Rf2 66. e7+ Kf7 67. Rg7+ Kxf6 68. e8=Q (68. e8=R Kxg7 69. Re5 Kf6 $14) 68... Kxg7 69. Qd7+ Kg6 70. Qxd5) 1-0

[Event "Seniors-LEM-65 Sachsen-Anhalt 2024"]
[Site "Magdeburg"]
[Date "2024.07.01"]
[Round "1.13"]
[White "Kolthoff, Siegmund"]
[Black "Schwarz, Hans"]
[Result "*"]
[ECO "B02"]
[WhiteElo "2090"]
[BlackElo "1856"]
[Annotator "RC"]
[PlyCount "35"]
[EventDate "2024.06.25"]
[EventType "swiss"]
[EventCountry "GER"]
[SourceTitle "playchess.com"]
[Source "ChessBase"]
[SourceQuality "1"]
[TimeControl "40/5400+30:1800+30"]

1. e4 {[%emt 0:00:03]} Nf6 {[%emt 0:00:37]} 2. Nc3 {[%emt 0:00:44]} d5 {[%emt 0:00:42]} 3. exd5 {[%emt 0:02:31]} Nxd5 {[%emt 0:00:13]} 4. Nxd5 {[%emt 0:01:31]} Qxd5 {[%emt 0:00:10]} 5. d4 {[%emt 0:00:22]} Nc6 {[%emt 0:02:34]} 6. Be3 {[%emt 0:00:27]} g6 {[%emt 0:08:01]} 7. a3 {[%emt 0:01:24]} Bf5 {[%emt 0:05:52]} 8. Nf3 {[%emt 0:04:37]} Bg7 {[%emt 0:05:53]} 9. Qd2 {[%emt 0:09:03]} O-O {[%emt 0:05:37]} 10. c4 {[%emt 0:03:45]} Qe4 {[%emt 0:02:16]} 11. Ng5 {[%emt 0:04:21]} Qc2 {[%emt 0:00:34]} 12. Nf3 {[%emt 0:03:09]} Rad8 {[%emt 0:10:25]} 13. Rd1 {[%emt 0:01:23]} Qb3 {[%emt 0:05:55]} 14. Qc3 {[%emt 0:06:23]} Qxc3+ {[%emt 0:03:16]} 15. bxc3 {[%emt 0:00:10]} e5 {[%emt 0:00:48]} 16. Be2 {[%emt 0:00:29]} e4 {[%emt 0:04:35]} 17. Nd2 {[%emt 0:00:22]} Rfe8 {[%emt 0:01:00]} 18. Nb3 {[%emt 0:01:12]} *